[Event "Chinese League Division-A 2024"]
[Site "Fuling Chongqing"]
[Date "2024.07.06"]
[Round "9.15"]
[White "Wang, Chuqiao"]
[Black "Zhang, Xiao"]
[Result "1-0"]
[ECO "D38"]
[WhiteElo "2278"]
[BlackElo "2193"]
[Annotator "RC"]
[PlyCount "75"]
[EventDate "2024.06.28"]
[EventType "team-tourn"]
[EventCountry "CHN"]
[SourceTitle "playchess.com"]
[Source "ChessBase"]
[SourceQuality "1"]
[TimeControl "40/5400+30:1800+30"]

1. d4 {[%emt 0:00:03]} Nf6 {[%emt 0:00:04]} 2. c4 {[%emt 0:00:13]} e6 {[%emt 0:00:05]} 3. Nf3 {[%emt 0:00:20]} d5 {[%emt 0:00:10]} 4. Nc3 {[%emt 0:00:17]} Bb4 {[%emt 0:00:07]} 5. Qa4+ {[%emt 0:07:23]} Nc6 {[%emt 0:00:06]} 6. e3 {[%emt 0:00:04]} O-O {[%emt 0:00:09]} 7. Qc2 {[%emt 0:00:16]} dxc4 {[%emt 0:00:20]} 8. Bxc4 {[%emt 0:00:57]} Bd6 {[%emt 0:00:05]} 9. O-O {[%emt 0:04:40]} e5 {[%emt 0:00:16]} 10. h3 {[%emt 0:02:39]} exd4 {[%emt 0:06:05]} 11. exd4 {[%emt 0:00:42]} a6 {[%emt 0:06:53]} 12. Bg5 {[%emt 0:07:18]} Nb4 {[%emt 0:10:24]} 13. Qc1 {[%emt 0:05:50]} Be7 {[%emt 0:13:48]} 14. a3 {[%emt 0:14:38]} Nc6 {[%emt 0:00:10]} 15. Re1 {[%emt 0:03:45]} Bf5 {[%emt 0:07:15]} 16. d5 {[%emt 0:11:30]} Nb8 {[%emt 0:03:06]} 17. Qe3 {[%emt 0:13:30]} Bd6 {[%emt 0:04:22]} 18. Nh4 {[%emt 0:01:08]} Bg6 {[%emt 0:00:28]} 19. Nxg6 {[%emt 0:03:37]} hxg6 {[%emt 0:02:32]} 20. Ne4 {[%emt 0:01:31]} Be7 {[%emt 0:04:05]} 21. Nxf6+ {[%emt 0:03:47]} Bxf6 {[%emt 0:00:07]} 22. Bxf6 {[%emt 0:00:08]} gxf6 {[%emt 0:00:12]} 23. Qh6 {[%emt 0:04:07]} f5 {[%emt 0:00:38]} 24. d6 {[%emt 0:01:50]} Qxd6 {[%emt 0:02:10]} 25. Re6 {[%emt 0:00:31]} fxe6 {[%emt 0:00:26]} 26. Qxg6+ {[%emt 0:00:07]} Kh8 {[%emt 0:00:02]} 27. Qh6+ {[%emt 0:00:47]} Kg8 {[%emt 0:00:08]} 28. Bxe6+ {[%emt 0:00:08]} Rf7 {[%emt 0:02:17]} 29. Qg6+ {[%emt 0:00:05]} Kh8 {[%emt 0:00:02]} 30. Qh5+ {[%emt 0:01:31]} Kg7 {[%emt 0:04:40]} 31. Qxf7+ {[%emt 0:00:06]} Kh6 {[%emt 0:00:05]} 32. Qf6+ {[%emt 0:00:37]} Kh7 {[%emt 0:00:06]} 33. Bxf5+ {[%emt 0:00:21]} Kg8 {[%emt 0:00:03]} 34. Be6+ {[%emt 0:01:10]} Kh7 {[%emt 0:00:03]} 35. Qf7+ {[%emt 0:00:35]} Kh6 {[%emt 0:00:04]} 36. h4 {[%emt 0:00:13]} Qe5 {[%emt 0:02:48]} 37. g4 {[%emt 0:00:15]} Qg7 {[%emt 0:00:20]} 38. Qh5# {[%emt 0:00:07]} 1-0

[Event "Chinese League Division-A 2024"]
[Site "Fuling Chongqing"]
[Date "2024.07.06"]
[Round "9.16"]
[White "Bai, Jinshi"]
[Black "Xu, Yi"]
[Result "1/2-1/2"]
[ECO "D37"]
[WhiteElo "2564"]
[BlackElo "2496"]
[Annotator "RC"]
[PlyCount "105"]
[EventDate "2024.06.28"]
[EventType "team-tourn"]
[EventCountry "CHN"]
[SourceTitle "playchess.com"]
[Source "ChessBase"]
[SourceQuality "1"]
[TimeControl "40/5400+30:1800+30"]

1. d4 {[%emt 0:00:06]} Nf6 {[%emt 0:00:04]} 2. c4 {[%emt 0:00:09]} e6 {[%emt 0:00:04]} 3. Nf3 {[%emt 0:00:18]} d5 {[%emt 0:00:05]} 4. Nc3 {[%emt 0:00:12]} Bb4 {[%emt 0:00:06]} 5. e3 {[%emt 0:00:46]} O-O {[%emt 0:00:25]} 6. Be2 {[%emt 0:00:06]} dxc4 {[%emt 0:04:12]} 7. O-O {[%emt 0:00:39]} c5 {[%emt 0:01:24]} 8. dxc5 {[%emt 0:00:25]} Bxc5 {[%emt 0:01:29]} 9. Bxc4 {[%emt 0:00:12]} a6 {[%emt 0:05:04]} 10. Bd3 {[%emt 0:00:43]} Nc6 {[%emt 0:01:49]} 11. a3 {[%emt 0:12:53]} Be7 {[%emt 0:01:35]} 12. b4 {[%emt 0:06:39]} b5 {[%emt 0:03:53]} 13. Bb2 {[%emt 0:02:22]} Bb7 {[%emt 0:00:51]} 14. Ne4 {[%emt 0:04:28]} Nxe4 {[%emt 0:13:09]} 15. Bxe4 {[%emt 0:00:06]} Qxd1 {[%emt 0:02:08]} 16. Rfxd1 {[%emt 0:17:53]} f5 {[%emt 0:01:55]} 17. Bc2 {[%emt 0:06:13]} Rfd8 {[%emt 0:02:58]} 18. e4 {[%emt 0:06:39]} fxe4 {[%emt 0:03:46]} 19. Bxe4 {[%emt 0:00:11]} Rxd1+ {[%emt 0:00:15]} 20. Rxd1 {[%emt 0:00:05]} Rd8 {[%emt 0:00:24]} 21. Re1 {[%emt 0:09:59]} Bf6 {[%emt 0:03:03]} 22. Bxf6 {[%emt 0:01:03]} gxf6 {[%emt 0:00:06]} 23. g4 {[%emt 0:02:14]} Rd6 {[%emt 0:03:30]} 24. h4 {[%emt 0:02:12]} h6 {[%emt 0:04:10]} 25. g5 {[%emt 0:05:50]} hxg5 {[%emt 0:00:18]} 26. hxg5 {[%emt 0:00:03]} Kg7 {[%emt 0:02:00]} 27. Rc1 {[%emt 0:01:01]} fxg5 {[%emt 0:01:55]} 28. Nxg5 {[%emt 0:00:24]} Kf6 {[%emt 0:01:23]} 29. f4 {[%emt 0:00:30]} Ke7 {[%emt 0:08:39]} 30. Kf2 {[%emt 0:09:45]} Nd8 {[%emt 0:04:00]} 31. Ke3 {[%emt 0:00:12]} Bxe4 {[%emt 0:02:28]} 32. Nxe4 {[%emt 0:04:04]} Rc6 {[%emt 0:01:43]} 33. Rc5 {[%emt 0:00:56]} Rxc5 {[%emt 0:17:34]} 34. Nxc5 {[%emt 0:00:04]} Nf7 {[%emt 0:00:29]} 35. Kd4 {[%emt 0:02:28]} Kd6 {[%emt 0:01:47]} 36. Ne4+ {[%emt 0:00:19]} Kc6 {[%emt 0:01:39]} 37. Ng5 {[%emt 0:00:13]} Nd8 {[%emt 0:01:10]} 38. Ne4 {[%emt 0:04:49]} Nf7 {[%emt 0:00:27]} 39. Ng5 {[%emt 0:01:36]} Nd8 {[%emt 0:00:01]} 40. Ke5 {[%emt 0:00:00]} Kd7 {[%emt 0:00:00]} 41. Ne4 {[%emt 0:04:06]} Nc6+ {[%emt 0:06:51]} 42. Kf6 {[%emt 0:00:04]} Nd4 {[%emt 0:00:06]} 43. Kf7 {[%emt 0:07:27]} Kc6 {[%emt 0:06:59]} 44. Nc5 {[%emt 0:00:06]} Kd5 {[%emt 0:00:56]} 45. Nxa6 {[%emt 0:06:15]} e5 {[%emt 0:00:34]} 46. Nc7+ {[%emt 0:01:17]} Kc6 {[%emt 0:05:27]} 47. Nxb5 {[%emt 0:05:01]} Nxb5 {[%emt 0:00:12]} 48. fxe5 {[%emt 0:00:03]} Nxa3 {[%emt 0:00:07]} 49. e6 {[%emt 0:00:06]} Nb5 {[%emt 0:00:06]} 50. e7 {[%emt 0:00:05]} Nc7 {[%emt 0:00:11]} 51. b5+ {[%emt 0:00:09]} Kxb5 {[%emt 0:00:07]} 52. e8=Q+ {[%emt 0:00:04]} Nxe8 {[%emt 0:00:04]} 53. Kxe8 {[%emt 0:00:37]} 1/2-1/2

[Event "Chinese League Division-A 2024"]
[Site "Fuling Chongqing"]
[Date "2024.07.06"]
[Round "9.17"]
[White "Meng, Yihan"]
[Black "Kong, Xiangrui"]
[Result "1-0"]
[ECO "C54"]
[WhiteElo "2268"]
[BlackElo "2439"]
[Annotator "RC"]
[PlyCount "47"]
[EventDate "2024.06.28"]
[EventType "team-tourn"]
[EventCountry "CHN"]
[SourceTitle "playchess.com"]
[Source "ChessBase"]
[SourceQuality "1"]
[TimeControl "40/5400+30:1800+30"]

1. e4 {[%emt 0:00:03]} e5 {[%emt 0:00:02]} 2. Nf3 {[%emt 0:00:06]} Nc6 {[%emt 0:00:03]} 3. Bc4 {[%emt 0:00:06]} Bc5 {[%emt 0:00:05]} 4. c3 {[%emt 0:00:07]} Nf6 {[%emt 0:00:03]} 5. d3 {[%emt 0:00:03]} O-O {[%emt 0:00:08]} 6. O-O {[%emt 0:00:06]} d5 {[%emt 0:00:02]} 7. exd5 {[%emt 0:00:06]} Nxd5 {[%emt 0:00:02]} 8. Re1 {[%emt 0:00:06]} Bg4 {[%emt 0:00:20]} 9. h3 {[%emt 0:00:05]} Bh5 {[%emt 0:00:03]} 10. Nbd2 {[%emt 0:00:05]} Nb6 {[%emt 0:01:30]} 11. Bb3 {[%emt 0:00:08]} Kh8 {[%emt 0:01:37]} 12. Ne4 {[%emt 0:01:34]} Nd7 {[%emt 0:00:11]} 13. Ng3 {[%emt 0:12:15]} Bxf3 {[%emt 0:00:15]} 14. Qxf3 {[%emt 0:00:06]} f5 {[%emt 0:00:01]} 15. d4 {[%emt 0:20:22]} exd4 {[%emt 0:01:59]} 16. Bf4 {[%emt 0:00:22]} g5 {[%emt 0:01:47]} 17. Bd2 {[%emt 0:03:49]} Nde5 {[%emt 0:43:17]} 18. Qh5 {[%emt 0:05:57]} Qd6 {[%emt 0:04:52]} 19. Rad1 {[%emt 0:17:51]} d3 {[%emt 0:21:40]} 20. Bxg5 {[%emt 0:07:48]} Ng4 {[%emt 0:05:40]} 21. hxg4 {[%emt 0:02:09]} Qxg3 {[%emt 0:00:02]} 22. Bf7 {[%emt 0:08:11]} Qxf2+ {[%emt 0:08:31]} 23. Kh1 {[%emt 0:00:08]} fxg4 {[%emt 0:00:03]} 24. Bg6 {[%emt 0:00:32]} 1-0

[Event "Chinese League Division-A 2024"]
[Site "Fuling Chongqing"]
[Date "2024.07.06"]
[Round "9.18"]
[White "Ma, Qun"]
[Black "Gong, Sunle"]
[Result "1-0"]
[ECO "C42"]
[WhiteElo "2643"]
[BlackElo "2239"]
[Annotator "RC"]
[PlyCount "178"]
[EventDate "2024.06.28"]
[EventType "team-tourn"]
[EventCountry "CHN"]
[SourceTitle "playchess.com"]
[Source "ChessBase"]
[SourceQuality "1"]
[TimeControl "40/5400+30:1800+30"]

1. e4 {[%emt 0:00:07]} e5 {[%emt 0:00:13]} 2. Nf3 {[%emt 0:00:09]} Nf6 {[%emt 0:00:09]} 3. Nxe5 {[%emt 0:00:14]} d6 {[%emt 0:00:05]} 4. Nf3 {[%emt 0:00:05]} Nxe4 {[%emt 0:00:04]} 5. d4 {[%emt 0:00:05]} d5 {[%emt 0:00:19]} 6. Bd3 {[%emt 0:00:06]} Bd6 {[%emt 0:00:05]} 7. O-O {[%emt 0:00:26]} O-O {[%emt 0:00:26]} 8. c4 {[%emt 0:00:06]} c6 {[%emt 0:00:03]} 9. Re1 {[%emt 0:00:33]} Bf5 {[%emt 0:00:15]} 10. Qc2 {[%emt 0:00:24]} Na6 {[%emt 0:02:20]} 11. a3 {[%emt 0:02:09]} Bg6 {[%emt 0:00:18]} 12. c5 {[%emt 0:00:13]} Bb8 {[%emt 0:00:07]} 13. Nc3 {[%emt 0:00:31]} f5 {[%emt 0:01:55]} 14. Ne2 {[%emt 0:01:04]} Bh5 {[%emt 0:00:36]} 15. Ng3 {[%emt 0:00:10]} Bg4 {[%emt 0:02:38]} 16. Qb3 {[%emt 0:03:53]} Qd7 {[%emt 0:04:58]} 17. Ng5 {[%emt 0:25:30]} Kh8 {[%emt 0:12:07]} 18. f3 {[%emt 0:13:45]} Nxg3 {[%emt 0:02:56]} 19. fxg4 {[%emt 0:00:06]} Qc7 {[%emt 0:32:42]} 20. Nf3 {[%emt 0:13:15]} fxg4 {[%emt 0:02:07]} 21. Ne5 {[%emt 0:00:03]} Qa5 {[%emt 0:08:32]} 22. Qc3 {[%emt 0:13:52]} Qxc3 {[%emt 0:00:17]} 23. bxc3 {[%emt 0:00:01]} Bxe5 {[%emt 0:06:01]} 24. Rxe5 {[%emt 0:00:04]} Ne4 {[%emt 0:00:24]} 25. Bxe4 {[%emt 0:05:14]} dxe4 {[%emt 0:00:07]} 26. Rxe4 {[%emt 0:00:06]} b6 {[%emt 0:03:13]} 27. cxb6 {[%emt 0:06:10]} axb6 {[%emt 0:00:06]} 28. Rxg4 {[%emt 0:01:20]} Nc7 {[%emt 0:02:29]} 29. Bf4 {[%emt 0:04:19]} Nd5 {[%emt 0:04:07]} 30. Be5 {[%emt 0:00:03]} Ra7 {[%emt 0:02:09]} 31. Rg3 {[%emt 0:01:58]} b5 {[%emt 0:00:22]} 32. h4 {[%emt 0:03:44]} Kg8 {[%emt 0:01:50]} 33. Rc1 {[%emt 0:00:30]} Nf4 {[%emt 0:02:51]} 34. Rc2 {[%emt 0:02:16]} Rff7 {[%emt 0:04:42]} 35. Bd6 {[%emt 0:01:29]} h6 {[%emt 0:02:26]} 36. Kh2 {[%emt 0:00:19]} Ra4 {[%emt 0:00:19]} 37. Bb4 {[%emt 0:01:09]} Nd5 {[%emt 0:00:39]} 38. Re2 {[%emt 0:00:12]} Rf4 {[%emt 0:01:11]} 39. Kh3 {[%emt 0:02:24]} Kf7 {[%emt 0:00:14]} 40. Re5 {[%emt 0:00:00]} Nxb4 {[%emt 0:00:00]} 41. axb4 {[%emt 0:01:27]} Ra1 {[%emt 0:13:10]} 42. Rf3 {[%emt 0:07:17]} Rf1 {[%emt 0:01:06]} 43. Rxf1 {[%emt 0:02:50]} Rxf1 {[%emt 0:00:04]} 44. Rc5 {[%emt 0:01:23]} Rf6 {[%emt 0:00:06]} 45. h5 {[%emt 0:00:22]} Ke7 {[%emt 0:01:41]} 46. Kg4 {[%emt 0:03:11]} Kd6 {[%emt 0:00:42]} 47. Rf5 {[%emt 0:03:47]} Re6 {[%emt 0:00:28]} 48. Kf4 {[%emt 0:04:54]} g6 {[%emt 0:07:00]} 49. hxg6 {[%emt 0:03:47]} Rxg6 {[%emt 0:00:05]} 50. g4 {[%emt 0:00:51]} Re6 {[%emt 0:00:52]} 51. Rh5 {[%emt 0:00:05]} Rf6+ {[%emt 0:00:33]} 52. Rf5 {[%emt 0:00:05]} Re6 {[%emt 0:00:22]} 53. Rh5 {[%emt 0:02:04]} Rf6+ {[%emt 0:00:13]} 54. Kg3 {[%emt 0:00:05]} Re6 {[%emt 0:00:33]} 55. Kh4 {[%emt 0:00:02]} Rf6 {[%emt 0:00:46]} 56. Rc5 {[%emt 0:03:35]} Rf1 {[%emt 0:06:42]} 57. d5 {[%emt 0:00:07]} cxd5 {[%emt 0:00:04]} 58. Rxb5 {[%emt 0:00:01]} Rh1+ {[%emt 0:00:29]} 59. Kg3 {[%emt 0:00:02]} Rg1+ {[%emt 0:01:10]} 60. Kf4 {[%emt 0:00:13]} Rf1+ {[%emt 0:04:01]} 61. Ke3 {[%emt 0:00:01]} Rg1 {[%emt 0:02:12]} 62. Kf3 {[%emt 0:02:27]} Rf1+ {[%emt 0:00:29]} 63. Ke2 {[%emt 0:01:26]} Rf4 {[%emt 0:01:05]} 64. Rb6+ {[%emt 0:00:09]} Kc7 {[%emt 0:00:28]} 65. Rg6 {[%emt 0:00:22]} Rc4 {[%emt 0:00:26]} 66. Kd3 {[%emt 0:00:02]} Kd7 {[%emt 0:00:12]} 67. Rg8 {[%emt 0:02:46]} Kc7 {[%emt 0:00:14]} 68. Rg7+ {[%emt 0:00:19]} Kc6 {[%emt 0:00:11]} 69. Rg6+ {[%emt 0:00:29]} Kc7 {[%emt 0:00:06]} 70. b5 {[%emt 0:00:28]} Rf4 {[%emt 0:02:40]} 71. Kc2 {[%emt 0:00:24]} Re4 {[%emt 0:00:07]} 72. Kb2 {[%emt 0:01:19]} Rf4 {[%emt 0:00:07]} 73. Ka3 {[%emt 0:00:16]} Re4 {[%emt 0:00:11]} 74. Rc6+ {[%emt 0:01:23]} Kd7 {[%emt 0:00:12]} 75. Rc5 {[%emt 0:00:03]} Kd6 {[%emt 0:00:10]} 76. Rc8 {[%emt 0:00:01]} Kd7 {[%emt 0:00:12]} 77. Rg8 {[%emt 0:00:02]} Kc7 {[%emt 0:00:09]} 78. Rg6 {[%emt 0:00:04]} Rf4 {[%emt 0:00:06]} 79. Kb2 {[%emt 0:00:23]} Re4 {[%emt 0:00:13]} 80. Kc2 {[%emt 0:00:03]} Rf4 {[%emt 0:00:24]} 81. Kd3 {[%emt 0:00:01]} Rc4 {[%emt 0:00:20]} 82. Ke3 {[%emt 0:00:38]} Re4+ {[%emt 0:00:13]} 83. Kf3 {[%emt 0:00:05]} Rc4 {[%emt 0:00:49]} 84. Rxh6 {[%emt 0:00:37]} Rxc3+ {[%emt 0:00:02]} 85. Kf4 {[%emt 0:00:00]} d4 {[%emt 0:04:40]} 86. b6+ {[%emt 0:00:02]} Kb7 {[%emt 0:00:18]} 87. Rd6 {[%emt 0:01:11]} Rc4 {[%emt 0:00:10]} 88. g5 {[%emt 0:02:43]} d3+ {[%emt 0:00:05]} 89. Kf5 {[%emt 0:00:16]} Rc5+ {[%emt 0:00:05]} 1-0

[Event "Chinese League Division-A 2024"]
[Site "Fuling Chongqing"]
[Date "2024.07.06"]
[Round "9.21"]
[White "Chen, Qi b"]
[Black "Wan, Yunguo"]
[Result "1/2-1/2"]
[ECO "B45"]
[WhiteElo "2481"]
[BlackElo "2498"]
[Annotator "RC"]
[PlyCount "69"]
[EventDate "2024.06.28"]
[EventType "team-tourn"]
[EventCountry "CHN"]
[SourceTitle "playchess.com"]
[Source "ChessBase"]
[SourceQuality "1"]
[TimeControl "40/5400+30:1800+30"]

1. e4 {[%emt 0:00:02]} c5 {[%emt 0:00:25]} 2. Nf3 {[%emt 0:00:08]} e6 {[%emt 0:00:50]} 3. d4 {[%emt 0:00:05]} cxd4 {[%emt 0:00:05]} 4. Nxd4 {[%emt 0:00:02]} Nf6 {[%emt 0:00:14]} 5. Nc3 {[%emt 0:00:05]} Nc6 {[%emt 0:00:03]} 6. Bf4 {[%emt 0:00:18]} Bc5 {[%emt 0:02:55]} 7. Ndb5 {[%emt 0:00:27]} O-O {[%emt 0:00:23]} 8. Bc7 {[%emt 0:00:16]} Qe7 {[%emt 0:00:30]} 9. Bd6 {[%emt 0:00:10]} Bxd6 {[%emt 0:00:07]} 10. Qxd6 {[%emt 0:00:04]} Qd8 {[%emt 0:00:09]} 11. O-O-O {[%emt 0:00:14]} a6 {[%emt 0:00:55]} 12. Nd4 {[%emt 0:00:07]} Ne7 {[%emt 0:00:18]} 13. a4 {[%emt 0:00:06]} Ne8 {[%emt 0:11:04]} 14. Qb4 {[%emt 0:00:21]} d6 {[%emt 0:00:57]} 15. e5 {[%emt 0:17:52]} d5 {[%emt 0:04:08]} 16. Bd3 {[%emt 0:04:13]} a5 {[%emt 0:17:05]} 17. Qa3 {[%emt 0:02:44]} Nc7 {[%emt 0:04:34]} 18. f4 {[%emt 0:03:13]} Nc6 {[%emt 0:08:07]} 19. Ncb5 {[%emt 0:06:58]} Nxd4 {[%emt 0:05:21]} 20. Nxd4 {[%emt 0:00:15]} Bd7 {[%emt 0:00:02]} 21. h4 {[%emt 0:05:48]} Qe8 {[%emt 0:16:00]} 22. Qc5 {[%emt 0:12:02]} Rc8 {[%emt 0:00:00]} 23. Qxa5 {[%emt 0:01:29]} Bxa4 {[%emt 0:00:00]} 24. f5 {[%emt 0:02:24]} exf5 {[%emt 0:00:03]} 25. Nxf5 {[%emt 0:01:38]} Qd7 {[%emt 0:00:09]} 26. Qb4 {[%emt 0:08:26]} Kh8 {[%emt 0:00:37]} 27. Nd6 {[%emt 0:03:11]} Ra8 {[%emt 0:01:28]} 28. Rhf1 {[%emt 0:07:17]} Bc6 {[%emt 0:02:31]} 29. Qf4 {[%emt 0:01:30]} f6 {[%emt 0:04:22]} 30. h5 {[%emt 0:02:23]} Ne6 {[%emt 0:05:51]} 31. Qf5 {[%emt 0:00:54]} Ng5 {[%emt 0:00:19]} 32. h6 {[%emt 0:03:43]} Qxf5 {[%emt 0:00:46]} 33. hxg7+ {[%emt 0:02:10]} Kxg7 {[%emt 0:00:04]} 34. Nxf5+ {[%emt 0:00:16]} Kh8 {[%emt 0:00:43]} 35. exf6 {[%emt 0:01:59]} 1/2-1/2

[Event "Chinese League Division-A 2024"]
[Site "Fuling Chongqing"]
[Date "2024.07.06"]
[Round "9.22"]
[White "Peng, Xiongjian"]
[Black "Xu, Jun"]
[Result "0-1"]
[ECO "C81"]
[WhiteElo "2521"]
[BlackElo "2471"]
[Annotator "RC"]
[PlyCount "84"]
[EventDate "2024.06.28"]
[EventType "team-tourn"]
[EventCountry "CHN"]
[SourceTitle "playchess.com"]
[Source "ChessBase"]
[SourceQuality "1"]
[TimeControl "40/5400+30:1800+30"]

1. e4 {[%emt 0:00:06]} e5 {[%emt 0:00:13]} 2. Nf3 {[%emt 0:00:09]} Nc6 {[%emt 0:00:08]} 3. Bb5 {[%emt 0:00:06]} a6 {[%emt 0:00:09]} 4. Ba4 {[%emt 0:00:04]} Nf6 {[%emt 0:00:06]} 5. O-O {[%emt 0:00:25]} Nxe4 {[%emt 0:00:13]} 6. d4 {[%emt 0:00:19]} b5 {[%emt 0:00:05]} 7. Bb3 {[%emt 0:00:04]} d5 {[%emt 0:00:08]} 8. dxe5 {[%emt 0:00:04]} Be6 {[%emt 0:00:06]} 9. Qe2 {[%emt 0:02:12]} Be7 {[%emt 0:13:05]} 10. Rd1 {[%emt 0:03:22]} O-O {[%emt 0:01:26]} 11. c4 {[%emt 0:00:14]} bxc4 {[%emt 0:01:46]} 12. Bxc4 {[%emt 0:00:04]} Bc5 {[%emt 0:01:23]} 13. Be3 {[%emt 0:00:10]} Bxe3 {[%emt 0:00:06]} 14. Qxe3 {[%emt 0:00:05]} Qb8 {[%emt 0:00:24]} 15. Bb3 {[%emt 0:01:17]} Na5 {[%emt 0:05:18]} 16. Nc3 {[%emt 0:13:22]} Nxb3 {[%emt 0:06:25]} 17. axb3 {[%emt 0:00:37]} Qxb3 {[%emt 0:01:40]} 18. Nd4 {[%emt 0:01:46]} Qb7 {[%emt 0:01:01]} 19. Nce2 {[%emt 0:12:21]} Bd7 {[%emt 0:03:44]} 20. f3 {[%emt 0:10:13]} Nc5 {[%emt 0:02:21]} 21. Nf4 {[%emt 0:00:36]} Rfe8 {[%emt 0:04:54]} 22. Nh5 {[%emt 0:06:51]} f6 {[%emt 0:03:08]} 23. Qc1 {[%emt 0:10:34]} Qb6 {[%emt 0:08:24]} 24. exf6 {[%emt 0:00:56]} Ne6 {[%emt 0:04:47]} 25. Kh1 {[%emt 0:04:31]} Nxd4 {[%emt 0:01:15]} 26. Qg5 {[%emt 0:08:20]} Ne6 {[%emt 0:01:37]} 27. Qxd5 {[%emt 0:00:26]} Bc6 {[%emt 0:00:42]} 28. Qf5 {[%emt 0:00:39]} Kh8 {[%emt 0:04:48]} 29. Qe5 {[%emt 0:16:06]} Qb5 {[%emt 0:04:47]} 30. fxg7+ {[%emt 0:00:30]} Kg8 {[%emt 0:00:09]} 31. Nf6+ {[%emt 0:01:53]} Kf7 {[%emt 0:00:20]} 32. Nd5 {[%emt 0:02:24]} Bxd5 {[%emt 0:02:13]} 33. Rxd5 {[%emt 0:00:04]} Qc6 {[%emt 0:01:04]} 34. Rad1 {[%emt 0:02:18]} Re7 {[%emt 0:03:25]} 35. Qe4 {[%emt 0:00:05]} Kg8 {[%emt 0:01:27]} 36. Qh4 {[%emt 0:04:39]} Rxg7 {[%emt 0:02:02]} 37. h3 {[%emt 0:00:30]} Rf8 {[%emt 0:00:26]} 38. Qe4 {[%emt 0:00:33]} Nf4 {[%emt 0:00:55]} 39. R5d4 {[%emt 0:00:28]} Qxe4 {[%emt 0:00:30]} 40. Rxe4 {[%emt 0:00:00]} Nxg2 {[%emt 0:00:00]} 41. Rdd4 {[%emt 0:02:46]} Rxf3 {[%emt 0:02:51]} 42. Kh2 {[%emt 0:10:05]} h5 {[%emt 0:00:46]} 0-1

[Event "Chinese League Division-A 2024"]
[Site "Fuling Chongqing"]
[Date "2024.07.06"]
[Round "9.24"]
[White "Sun, Fanghui"]
[Black "Guo, Qi"]
[Result "1/2-1/2"]
[ECO "C42"]
[WhiteElo "2115"]
[BlackElo "2362"]
[Annotator "RC"]
[PlyCount "73"]
[EventDate "2024.06.28"]
[EventType "team-tourn"]
[EventCountry "CHN"]
[SourceTitle "playchess.com"]
[Source "ChessBase"]
[SourceQuality "1"]
[TimeControl "40/5400+30:1800+30"]

1. e4 {[%emt 0:00:04]} e5 {[%emt 0:00:14]} 2. Nf3 {[%emt 0:00:06]} Nf6 {[%emt 0:00:07]} 3. Nxe5 {[%emt 0:00:47]} d6 {[%emt 0:00:08]} 4. Nf3 {[%emt 0:00:10]} Nxe4 {[%emt 0:00:07]} 5. Nc3 {[%emt 0:00:25]} Nxc3 {[%emt 0:00:07]} 6. dxc3 {[%emt 0:00:04]} Be7 {[%emt 0:00:06]} 7. Be3 {[%emt 0:00:40]} O-O {[%emt 0:00:16]} 8. Qd2 {[%emt 0:03:59]} Nd7 {[%emt 0:00:10]} 9. h3 {[%emt 0:07:54]} Nf6 {[%emt 0:00:31]} 10. Bd3 {[%emt 0:01:12]} Re8 {[%emt 0:05:28]} 11. O-O-O {[%emt 0:06:18]} c5 {[%emt 0:02:06]} 12. Rhe1 {[%emt 0:04:32]} Qa5 {[%emt 0:05:18]} 13. Kb1 {[%emt 0:01:00]} Be6 {[%emt 0:03:26]} 14. c4 {[%emt 0:08:45]} Qxd2 {[%emt 0:00:41]} 15. Bxd2 {[%emt 0:01:39]} h6 {[%emt 0:01:34]} 16. b3 {[%emt 0:03:04]} a6 {[%emt 0:03:10]} 17. Nh4 {[%emt 0:07:14]} d5 {[%emt 0:03:36]} 18. cxd5 {[%emt 0:08:54]} Nxd5 {[%emt 0:04:01]} 19. Nf5 {[%emt 0:01:11]} Bxf5 {[%emt 0:02:59]} 20. Bxf5 {[%emt 0:00:05]} Bf6 {[%emt 0:00:14]} 21. c4 {[%emt 0:05:21]} Nc3+ {[%emt 0:01:04]} 22. Bxc3 {[%emt 0:00:07]} Bxc3 {[%emt 0:00:04]} 23. Rxe8+ {[%emt 0:00:08]} Rxe8 {[%emt 0:00:03]} 24. Kc2 {[%emt 0:00:41]} Bd4 {[%emt 0:00:25]} 25. f3 {[%emt 0:01:19]} b6 {[%emt 0:02:35]} 26. Be4 {[%emt 0:00:19]} g6 {[%emt 0:00:08]} 27. Re1 {[%emt 0:00:27]} Kg7 {[%emt 0:00:09]} 28. Kd1 {[%emt 0:00:08]} f5 {[%emt 0:02:41]} 29. Bb7 {[%emt 0:00:26]} Be3 {[%emt 0:02:29]} 30. g4 {[%emt 0:07:24]} f4 {[%emt 0:02:35]} 31. Kc2 {[%emt 0:01:01]} Rb8 {[%emt 0:01:10]} 32. Bc6 {[%emt 0:02:50]} Rc8 {[%emt 0:01:28]} 33. Bb7 {[%emt 0:00:29]} Rc7 {[%emt 0:00:18]} 34. Ba8 {[%emt 0:01:22]} Re7 {[%emt 0:00:35]} 35. a4 {[%emt 0:04:59]} Kf6 {[%emt 0:00:45]} 36. h4 {[%emt 0:00:45]} a5 {[%emt 0:02:23]} 37. Re2 {[%emt 0:01:47]} 1/2-1/2